[Event "Velammal AICF Women GM 2024"]
[Site "Chennai"]
[Date "2024.03.21"]
[Round "6.2"]
[White "Uuriintuya, Uurtsaikh"]
[Black "Monnisha G K"]
[Result "1-0"]
[ECO "C50"]
[WhiteElo "2288"]
[BlackElo "2202"]
[Annotator "TA"]
[PlyCount "111"]
[EventDate "2024.03.18"]
[EventType "tourn"]
[EventCountry "IND"]
[SourceTitle "playchess.com"]
[Source "ChessBase"]
[SourceQuality "1"]
[TimeControl "5400+30"]

{[%evp 9,111,17,22,14,26,13,20,11,26,26,21,20,25,16,21,0,23,-2,22,30,58,-17,-5,-15,36,46,100,93,90,87,92,70,155,139,154,138,130,147,195,198,190,137,133,113,121,45,204,174,187,200,193,213,182,207,208,204,198,201,203,164,150,129,335,270,313,315,414,253,240,92,93,0,224,88,106,0,225,78,78,78,276,60,64,56,337,0,0,0,278,50,123,123,224,260,610,506,1855,2019,1370,1787,1486,1672,896,675]} 1. e4 {[%emt 0:00:12]} e5 {[%emt 0:00:25]} 2. Nf3 {[%emt 0:00:18]} Nc6 {[%emt 0:00:05]} 3. Bc4 {[%emt 0:00:15]} Nf6 {[%emt 0:00:06]} 4. d3 {[%emt 0:00:10]} Bc5 {[%emt 0:00:05]} 5. O-O {[%emt 0:00:27]} a6 {[%emt 0:00:08]} 6. Nbd2 {[%emt 0:02:46]} h6 {[%emt 0:00:21]} 7. Re1 {[%emt 0:12:41]} d6 {[%emt 0:01:06]} 8. a4 {[%emt 0:01:55] Die Stellung ist ausgeglichen.} Ba7 {[%emt 0:02:29]} 9. c3 {[%emt 0:03:58]} O-O {[%emt 0:01:14]} 10. h3 {[%emt 0:03:57]} Ne7 {[%emt 0:00:36]} 11. Bb3 {[%emt 0:01:07]} Ng6 {[%emt 0:00:28][%cal Oc8h3]} 12. Nf1 {[%emt 0:05:17]} Be6 {[%emt 0:14:48]} 13. Bc2 {[%emt 0:04:05]} Re8 {[%emt 0:00:58]} 14. d4 {[%emt 0:03:16]} c5 {[%emt 0:03:20]} 15. a5 {[%emt 0:04:24]} ({Besser ist} 15. d5 $14 Bd7 16. a5) 15... cxd4 {[%emt 0:03:49]} 16. cxd4 {[%emt 0:00:07]} Nh7 {[%emt 0:11:25]} (16... Qc8 $11) 17. Be3 $14 {[%emt 0:05:22]} Ng5 {[%emt 0:05:58]} ({Vorzuziehen ist} 17... Bd7 $14) 18. Nxg5 $16 {[%emt 0:04:04]} hxg5 {[%emt 0:00:13]} 19. d5 {[%emt 0:02:19]} Bd7 {[%emt 0:00:57]} 20. Ba4 {[%emt 0:00:52]} Nf4 {[%emt 0:07:03]} (20... Bxe3 $14 21. Nxe3 Rc8) 21. Bxa7 {[%emt 0:04:11]} Rxa7 {[%emt 0:00:07]} 22. Ne3 {[%emt 0:00:29]} Bxa4 {[%emt 0:06:12]} 23. Rxa4 {[%emt 0:00:14]} b5 {[%emt 0:05:35] Pariert Nc4.} (23... Ra8 $16 24. g3 Ng6) 24. axb6 $18 {[%emt 0:00:28]} Qxb6 {[%emt 0:00:07]} 25. Nc4 {[%emt 0:00:17]} (25. g3 $18) 25... Qc5 $16 {[%emt 0:01:09]} 26. Re3 {[%emt 0:03:53]} Rb8 {[%emt 0:10:27]} 27. g3 {[%emt 0:12:38]} (27. Kh2 $16) 27... Ng6 $2 {[%emt 0:07:10]} (27... Nxh3+ $14 28. Kg2 Nxf2) 28. Qc2 {[%emt 0:04:11]} Ne7 {[%emt 0:07:21]} 29. Rc3 {[%emt 0:02:53]} Qb5 {[%emt 0:05:33]} 30. Nxd6 {[%emt 0:03:18]} Qxb2 {[%emt 0:04:40]} 31. Qxb2 {[%emt 0:00:13]} Rxb2 {[%emt 0:00:02]} 32. Nc4 {[%emt 0:02:10]} Rb1+ {[%emt 0:00:17]} 33. Kg2 {[%emt 0:00:02]} f6 {[%emt 0:00:31]} 34. d6 {[%emt 0:03:19]} Ng6 {[%emt 0:00:29]} 35. Ne3 {[%emt 0:02:52] Und Rc7 würde nun gewinnen.} Nf8 $2 {[%emt 0:01:40]} (35... Rbb7 $16 {ist eine bessere Verteidigung.} 36. Rc8+ Kh7) 36. Nd5 {[%emt 0:04:01]} Rd7 {[%emt 0:00:39]} 37. Rxa6 {[%emt 0:00:15] Schwarz muss nun Ra8 beachten.} Kf7 {[%emt 0:00:20]} 38. Rc8 {[%emt 0:01:42] Und jetzt Rc7 wäre schön.} Ne6 {[%emt 0:00:18]} 39. Ne7 {[%emt 0:03:09]} (39. Rac6 $1 $18 {ist viel giftiger.}) 39... Rd1 {[%emt 0:00:33]} 40. Nd5 {[%emt 0:00:23]} (40. Nf5 $16) 40... Rb1 $1 $18 {[%emt 0:00:16]} 41. Raa8 {[%emt 0:00:24]} (41. Rac6 $1 $18 {und Weiss behält klar die Oberhand.}) 41... Rbb7 $16 {[%emt 0:00:55]} 42. Ra6 {[%emt 0:00:16] Weiß steht deutlich aktiver.} (42. Rc6 $1 $16) 42... Rb1 $18 {[%emt 0:00:01] [#]} 43. h4 {[%emt 0:00:15]} (43. Rac6 $1 $18 {und der Rest ist Schweigen.}) 43... gxh4 $16 {[%emt 0:00:18]} 44. gxh4 {[%emt 0:00:04]} Rb3 $2 {[%emt 0:00:43] [#]} (44... Rd1 $16) 45. f3 $2 {[%emt 0:00:58]} (45. Rc7 $1 $18 {[%cal Rc7d7]} Rb7 46. Rb6 Rbxc7 47. dxc7 Nxc7 48. Rb7 Nxd5 49. Rxd7+ Ne7 50. Kf3) 45... Nf4+ $1 $14 {[%emt 0:00:55]} 46. Kg3 {[%emt 0:00:51]} Ne6 {[%emt 0:00:38][%mdl 8192] Wehrt Rc7 ab} (46... Nxd5 $14 47. exd5 Kg6) 47. Nc3 $2 {[%emt 0:01:38]} (47. Rac6 $18) 47... Nf4 $11 {[%emt 0:00:17][%cal Ob3c3]} 48. Nd5 {[%emt 0:00:13][%mdl 8192]} (48. Kf2 $11) 48... Ne6 $1 $18 {[%emt 0:00:05]} 49. Rc3 $2 {[%emt 0:00:44]} (49. Rac6 $18 {[%cal Oc6c7] Droht R6c7! und aus.} Nf4 50. R8c7 (50. Nxf4 exf4+ 51. Kxf4 Rd3 $18)) 49... Rb1 {[%emt 0:00:44]} (49... Rxc3 $14 50. Nxc3 Nd4) 50. Rcc6 $36 {[%emt 0:00:23][%mdl 2048] Schwarz steht unter starkem Druck.} Nd4 {[%emt 0:01:03]} (50... Rd1 $16 51. Ra8 Kg6) 51. Rc7 $18 {[%emt 0:00:21]} Ke6 {[%emt 0:00:22]} (51... Rb7 52. Rb6 Ra7) 52. Raa7 {[%emt 0:00:22] Weiß steht klar auf Gewinn.} Rxc7 {[%emt 0:00:36]} (52... Rd8 $142 53. Ne3 (53. Rxg7 Nf5+ 54. exf5+ Kxd5 $18) 53... f5 (53... Rb3 $2 54. Nc4 $18)) 53. dxc7 {[%emt 0:00:04]} ({Und nicht} 53. Rxc7 Kxd6 54. Kg2 Ne6 $11) 53... Rg1+ {[%emt 0:00:28]} 54. Kf2 {[%emt 0:00:42]} Rc1 {[%emt 0:00:16]} 55. Nb6 {[%emt 0:00:14]} Rc2+ {[%emt 0:00:08]} 56. Ke3 {[%emt 0:00:13] Gewichteter Fehlerwert: Weiß=0.60/Schwarz=0.43.  Verlustzug:     	---       	Schwarz=3     Gewinn verpasst:   	Weiß=3     	---        Fehler:       	Weiß=9     	Schwarz=9     Ungenau:       	Weiß=1     	Schwarz=2     OK:         	Weiß=13    	Schwarz=12    Bester:       	Weiß=4     	Schwarz=3     Stark:        	---       	Schwarz=3} 1-0

[Event "Velammal AICF Women GM 2024"]
[Site "Chennai"]
[Date "2024.03.21"]
[Round "6.3"]
[White "Rindhiya V"]
[Black "Franco Valencia, Angela"]
[Result "1/2-1/2"]
[ECO "C78"]
[WhiteElo "1953"]
[BlackElo "2095"]
[Annotator "NA RC"]
[PlyCount "65"]
[EventDate "2024.03.18"]
[EventType "tourn"]
[EventCountry "IND"]
[SourceTitle "playchess.com"]
[Source "ChessBase"]
[SourceQuality "1"]
[TimeControl "5400+30"]

1. e4 {[%emt 0:00:03]} e5 {[%emt 0:04:12]} 2. Nf3 {[%emt 0:00:05]} Nc6 {[%emt 0:00:26]} 3. Bb5 {[%emt 0:00:04]} a6 {[%emt 0:00:16]} 4. Ba4 {[%emt 0:00:04]} Nf6 {[%emt 0:00:42]} 5. O-O {[%emt 0:00:20]} b5 {[%emt 0:00:04]} 6. Bb3 {[%emt 0:00:07]} Bc5 {[%emt 0:00:06]} 7. c3 {[%emt 0:00:26]} d6 {[%emt 0:00:05]} 8. d4 {[%emt 0:00:10]} Bb6 {[%emt 0:00:29]} 9. a4 {[%emt 0:00:10] 9.Be3 is more fashionable.} Rb8 {[%emt 0:02:37]} 10. a5 {[%emt 0:01:19] C78: Ruy Lopez: Archangelsk and Möller Defences.} Ba7 {[%emt 0:00:25]} 11. h3 {[%emt 0:04:33]} h6 {[%emt 0:01:10]} 12. Be3 {[%emt 0:00:31]} exd4 {[%emt 0:05:17]} 13. cxd4 {[%emt 0:04:47]} O-O {[%emt 0:02:43]} 14. Nbd2 {[%emt 0:17:06]} Re8 {[%emt 0:06:35]} 15. Re1 {[%emt 0:01:42]} Bb7 {[%emt 0:09:07]} 16. d5 {[%emt 0:15:43]} Bxe3 {[%emt 0:00:13]} 17. Rxe3 {[%emt 0:00:19]} Ne5 {[%emt 0:02:42]} 18. Nd4 {[%emt 0:02:58]} c5 {[%emt 0:05:38]} 19. dxc6 {[%emt 0:09:48]} Nxc6 {[%emt 0:01:19]} 20. Nxc6 {[%emt 0:05:06]} Bxc6 {[%emt 0:00:06]} 21. Qe2 $146 {[%emt 0:01:48]} ({Predecessor:} 21. Qc2 Bb7 22. Qd3 {½-½ Baum,J (2429)-Radovanovic,N (2427) Ustron op-A 2023 (9)}) 21... Rc8 $11 {[%emt 0:05:43]} 22. Bc2 {[%emt 0:12:42]} Qc7 {[%emt 0:02:30]} 23. b4 {[%emt 0:13:41]} d5 {[%emt 0:02:24]} 24. Re1 {[%emt 0:00:58]} Bb7 {[%emt 0:14:20]} 25. Bd3 {[%emt 0:01:54]} dxe4 {[%emt 0:01:22]} 26. Nxe4 {[%emt 0:01:58]} Bxe4 {[%emt 0:07:44]} 27. Bxe4 {[%emt 0:00:04]} Nxe4 {[%emt 0:01:41]} 28. Rxe4 {[%emt 0:00:02]} Rxe4 {[%emt 0:00:19]} 29. Qxe4 {[%emt 0:00:03]} Rd8 {[%emt 0:04:12]} 30. Qe7 {[%emt 0:03:17]} Rd7 {[%emt 0:00:17]} 31. Qe8+ {[%emt 0:00:35]} Kh7 {[%emt 0:00:06]} 32. Qe4+ {[%emt 0:00:18]} g6 {[%emt 0:00:40]} 33. g3 {[%emt 0:01:19]} 1/2-1/2

[Event "Velammal AICF Women GM 2024"]
[Site "Chennai"]
[Date "2024.03.21"]
[Round "6.4"]
[White "Velpula Sarayu"]
[Black "Gomes, Mary Ann"]
[Result "0-1"]
[ECO "C11"]
[WhiteElo "2389"]
[BlackElo "2322"]
[Annotator "TA"]
[PlyCount "135"]
[EventDate "2024.03.18"]
[EventType "tourn"]
[EventCountry "IND"]
[SourceTitle "playchess.com"]
[Source "ChessBase"]
[SourceQuality "1"]
[TimeControl "5400+30"]

{[%evp 41,135,-43,-45,-65,0,-46,0,-17,-24,-87,-84,-93,-90,-89,-100,-95,-79,-98,-98,-283,-201,-183,-200,-210,-218,-183,0,-12,0,0,0,0,0,0,0,-8,0,0,-3,-18,-18,-69,-69,-69,-69,-69,-59,-59,-59,-59,-59,-59,-59,-59,-59,-59,-59,-52,-52,-392,-74,-74,-74,-74,-74,-185,-179,-799,-795,-690,-627,-580,-585,-556,-543,-1132,-1145,-937,-634,-29979,-29980,-29980,-29981,-29980,-29981,-29981,-29982,-29984,-29985,-29985,-29986,-29986,-29987,-29987,-29988,-29988]} 1. e4 {[%emt 0:00:27]} e6 {[%emt 0:00:24]} 2. d4 {[%emt 0:00:31]} d5 {[%emt 0:00:06]} 3. Nc3 {[%emt 0:00:28]} Nf6 {[%emt 0:00:07]} 4. e5 {[%emt 0:00:30]} Nfd7 {[%emt 0:00:06]} 5. f4 {[%emt 0:00:29]} c5 {[%emt 0:00:06]} 6. Nf3 {[%emt 0:00:28]} Nc6 {[%emt 0:00:07]} 7. Be3 {[%emt 0:00:30]} Be7 {[%emt 0:00:06]} 8. Qd2 {[%emt 0:00:31]} O-O {[%emt 0:00:08]} 9. dxc5 {[%emt 0:00:33]} Nxc5 {[%emt 0:00:07]} 10. O-O-O {[%emt 0:03:11]} a6 {[%emt 0:00:06]} 11. Qf2 {[%emt 0:01:22]} b6 {[%emt 0:00:07]} 12. f5 {[%emt 0:06:56]} Ra7 {[%emt 0:00:07]} 13. Bd3 {[%emt 0:22:22]} exf5 {[%emt 0:04:43]} 14. Bc4 {[%emt 0:01:46]} dxc4 {[%emt 0:00:19]} 15. Rxd8 {[%emt 0:00:11]} Rxd8 {[%emt 0:00:05]} 16. h3 {[%emt 0:09:03]} Rad7 {[%emt 0:06:42]} 17. Qe2 {[%emt 0:15:49]} b5 {[%emt 0:03:56]} 18. Rd1 {[%emt 0:02:48]} Rxd1+ {[%emt 0:05:28]} 19. Nxd1 {[%emt 0:00:03]} Be6 {[%emt 0:03:11]} 20. Nf2 {[%emt 0:09:43]} Nb4 {[%emt 0:04:13]} 21. a3 {[%emt 0:01:25]} Nc6 {[%emt 0:09:27]} 22. g4 {[%emt 0:01:32] [#]} c3 {[%emt 0:08:39]} (22... fxg4 $1 $15 23. Nxg4 (23. hxg4 h6) 23... Na4) 23. b4 {[%emt 0:02:39]} (23. Bxc5 $11 Bxc5 24. Nd3) 23... Na4 {[%emt 0:03:55]} 24. gxf5 {[%emt 0:07:17]} Bxf5 {[%emt 0:00:09]} 25. Qf1 {[%emt 0:01:17]} (25. Nd3 $1 $11 {keeps the balance.}) 25... Nb2 $1 $17 {[%emt 0:09:16]} 26. Qe1 {[%emt 0:02:43]} Nc4 {[%emt 0:02:54]} 27. Qxc3 {[%emt 0:00:45]} a5 $1 {[%emt 0:00:09]} 28. Bc5 {[%emt 0:00:35]} axb4 {[%emt 0:00:20]} 29. axb4 {[%emt 0:00:10]} Ra8 $1 {[%emt 0:03:37]} 30. Nd4 $2 {[%emt 0:04:34]} (30. Bxe7 $17 Ra3 31. Qxa3 Nxa3 32. Bc5) 30... Bg5+ {[%emt 0:02:57]} 31. Kd1 {[%emt 0:00:10]} Nxd4 $1 {[%emt 0:02:07]} (31... N6xe5 $2 32. Nxf5 h6 33. Nd3 $18) (31... Ra3 32. Qxa3 Nxa3 33. Nxf5 Nxe5 34. Ne4 $15) 32. Qxd4 {[%emt 0:00:18]} Rd8 $1 {[%emt 0:03:43]} 33. Bd6 {[%emt 0:00:04]} Be3 $2 {[%emt 0:01:41]} (33... Bf6 $1 $19 34. Ke1 (34. exf6 $2 {too greedy.} Rxd6 $19) 34... Bxe5 (34... Bxc2 35. Qc5 $16) 35. Bxe5 Rxd4 36. Bxd4 Bxc2) 34. Qh4 $11 {[%emt 0:00:15]} g5 {[%emt 0:04:24]} 35. Qh6 $1 {[%emt 0:00:10]} Nxd6 $1 {[%emt 0:02:21]} 36. exd6 {[%emt 0:00:19]} (36. Qf6 $5 Nb7+ $8 37. Ke2 Bxf2 38. Kxf2 $11) 36... Bf4 {[%emt 0:01:05]} 37. Qh5 {[%emt 0:00:45]} Rxd6+ {[%emt 0:00:09]} 38. Nd3 {[%emt 0:01:15]} Bxd3 {[%emt 0:00:48]} 39. cxd3 {[%emt 0:00:01]} Rxd3+ {[%emt 0:00:08]} 40. Kc2 {[%emt 0:00:04]} Rd4 {[%emt 0:01:24]} 41. Kc3 {[%emt 0:01:39]} ({White should play} 41. Qg4 $11) 41... Rc4+ $1 $15 {[%emt 0:00:37]} 42. Kb3 {[%emt 0:00:01]} Bd2 {[%emt 0:01:13]} 43. Qe2 {[%emt 0:00:10]} Bxb4 {[%emt 0:01:44]} 44. Qe5 {[%emt 0:02:25]} h6 $1 {[%emt 0:01:04]} 45. Qxb5 {[%emt 0:00:27]} Rf4 {[%emt 0:00:06]} 46. Qb8+ {[%emt 0:00:48]} Bf8 {[%emt 0:00:12]} 47. Qc8 {[%emt 0:00:06]} Kg7 {[%emt 0:00:32]} 48. Qc3+ {[%emt 0:00:20]} Kg6 {[%emt 0:00:26]} 49. Qd3+ {[%emt 0:00:26]} Kh5 {[%emt 0:00:40]} 50. Qd8 $2 {[%emt 0:02:34][%mdl 8192] [#]} (50. Qc3 $15) 50... Bg7 $2 {[%emt 0:01:51]} (50... Bc5 $1 $19 {has better winning chances. ...Kh4 is the strong threat.} 51. Qc8 Bd4) 51. Qg8 $17 {[%emt 0:00:06]} Be5 {[%emt 0:01:30]} 52. Qe8 {[%emt 0:00:12]} Bd4 {[%emt 0:00:20]} 53. Qc6 {[%emt 0:01:29] [#]} (53. Qf8 $17) 53... f6 $1 $19 {[%emt 0:00:24]} 54. Kc2 $2 {[%emt 0:01:02]} (54. Kc4) 54... Kh4 $19 {[%emt 0:00:45]} 55. Qe6 {[%emt 0:00:19]} h5 {[%emt 0:02:19]} 56. Kd3 {[%emt 0:00:22]} g4 {[%emt 0:00:44]} 57. hxg4 {[%emt 0:00:17]} hxg4 {[%emt 0:00:08]} 58. Qe8 {[%emt 0:01:26]} g3 {[%emt 0:03:01]} 59. Qh8+ {[%emt 0:00:28]} Kg4 {[%emt 0:00:07]} 60. Qg7+ {[%emt 0:00:56]} Kf3 {[%emt 0:00:58]} 61. Qb7+ {[%emt 0:00:42]} Kf2 {[%emt 0:00:20]} 62. Qc7 {[%emt 0:00:14]} Be5 {[%emt 0:01:37]} 63. Qc2+ {[%emt 0:00:16]} Kg1 {[%emt 0:00:29]} 64. Qd1+ {[%emt 0:00:56]} Rf1 {[%emt 0:00:25]} 65. Qe2 {[%emt 0:00:16]} g2 {[%emt 0:01:11]} 66. Qe3+ {[%emt 0:00:21]} Kh1 {[%emt 0:01:56]} 67. Qe4 {[%emt 0:00:06]} Bh2 {[%emt 0:01:48]} 68. Ke2 {[%emt 0:00:46]} 0-1

[Event "Velammal AICF Women GM 2024"]
[Site "Chennai"]
[Date "2024.03.21"]
[Round "6.5"]
[White "Mahalakshmi, M."]
[Black "Maisuradze, Nino"]
[Result "1-0"]
[ECO "A43"]
[WhiteElo "2242"]
[BlackElo "2254"]
[Annotator "TA"]
[PlyCount "51"]
[EventDate "2024.03.18"]
[EventType "tourn"]
[EventCountry "IND"]
[SourceTitle "playchess.com"]
[Source "ChessBase"]
[SourceQuality "1"]
[TimeControl "5400+30"]

{[%evp 9,51,55,59,62,50,54,118,114,106,55,103,91,84,62,79,63,79,64,75,50,160,193,183,188,332,316,371,355,450,454,497,490,609,615,841,825,820,858,1173,1162,2041,1953,29983,1876]} 1. d4 {[%emt 0:00:14]} Nf6 {[%emt 0:00:06]} 2. Nf3 {[%emt 0:00:12]} c5 {[%emt 0:00:38]} 3. d5 {[%emt 0:03:12]} e6 {[%emt 0:00:17]} 4. Nc3 {[%emt 0:00:51]} b5 {[%emt 0:08:44]} 5. dxe6 {[%emt 0:07:17]} fxe6 {[%emt 0:00:03]} 6. Nxb5 {[%emt 0:00:29]} Qa5+ {[%emt 0:19:21]} 7. Nc3 {[%emt 0:00:46]} d5 {[%emt 0:06:18] [#]} (7... Be7 $14) 8. Bd2 $1 $16 {[%emt 0:01:43][%cal Oc3d5] Threatens to win with Nxd5! White is better.} Qb6 {[%emt 0:02:27][%cal Oc8b7]} 9. g3 {[%emt 0:00:58]} (9. e4 $16) 9... Bd6 {[%emt 0:02:10]} (9... Nbd7 $14 {feels stronger.}) 10. Bg2 {[%emt 0:00:41][%cal Oe2e4]} Bb7 {[%emt 0:09:14][%cal Oe8g8]} 11. a4 {[%emt 0:08:53]} Nbd7 {[%emt 0:01:07][%cal Oe8g8]} 12. O-O {[%emt 0:08:29]} O-O {[%emt 0:00:41][%cal Oa7a6] [#]} 13. Nb5 $1 {[%emt 0:05:12][%cal Bc3b5,Bb5d4,Bd4e6][%mdl 32]} Bb8 {[%emt 0:00:27]} 14. b4 {[%emt 0:03:04]} Bc6 {[%emt 0:07:20]} ({Better is} 14... a6 $14) 15. Rb1 {[%emt 0:07:31]} Qa6 {[%emt 0:05:00]} 16. bxc5 {[%emt 0:00:59]} Qxa4 {[%emt 0:08:40]} (16... Nxc5 {might work better.} 17. Bb4 Nxa4) 17. Nbd4 $18 {[%emt 0:01:48] Ra1 would now be deadly.} Rc8 {[%emt 0:05:15][%cal Bf8c8,Bc8e8,Be8e7][%mdl 32]} 18. Nxe6 {[%emt 0:02:58]} a5 {[%emt 0:00:59][%cal Ba7a5,Ba5a4,Ba4a3][%mdl 32]} 19. Bc3 {[%emt 0:09:08]} Qc4 {[%emt 0:14:16]} 20. Bd4 {[%emt 0:04:51]} Re8 {[%emt 0:01:58]} 21. Bh3 {[%emt 0:01:50]} a4 {[%emt 0:02:05]} 22. Qd2 {[%emt 0:04:31][%cal Oe6g7] And now Nxg7! would win.} Ne4 {[%emt 0:00:56]} 23. Qe3 {[%emt 0:01:13]} a3 {[%emt 0:03:04]} 24. Nxg7 {[%emt 0:01:02]} Re7 {[%emt 0:00:50]} 25. Qh6 {[%emt 0:02:10] Threatening mate with Nf5.} Ndxc5 {[%emt 0:00:27]} 26. Qxc6 {[%emt 0:00:33] Weighted Error Value: White=0.04 (flawless) /Black=0.82.  Mistake:       	White=1     	Black=4      Inaccurate:     	---       	Black=1      OK:         	White=10    	Black=4      Best:        	White=1     	---        Strong:       	White=1     	---} (26. Bf5 $142 Nb3 27. Qxh7+ (27. Rxb3 Qxd4 28. Bxh7+ Kf8 $18) 27... Kf8 28. Qh8+ (28. Rxb3 Qxd4 29. Nxd4 Ng5 30. Nge6+ Nxe6 31. Nxe6+ Rxe6 32. Bxe6 Ke8 33. Rb7 Bd6 34. Qf7+ Kd8 35. Rd7+ Bxd7 36. Qxd7#) 28... Kf7 29. Bg6+ Kxg6 30. Qh5#) 1-0

[Event "Velammal AICF Women GM 2024"]
[Site "Chennai"]
[Date "2024.03.21"]
[Round "6.6"]
[White "Chitlange Sakshi"]
[Black "Sedina, Elena"]
[Result "1/2-1/2"]
[ECO "D19"]
[WhiteElo "2175"]
[BlackElo "2161"]
[Annotator "RC"]
[PlyCount "68"]
[EventDate "2024.03.18"]
[EventType "tourn"]
[EventCountry "IND"]
[SourceTitle "playchess.com"]
[Source "ChessBase"]
[SourceQuality "1"]
[TimeControl "5400+30"]

1. d4 {[%emt 0:00:03]} d5 {[%emt 0:00:14]} 2. c4 {[%emt 0:00:06]} c6 {[%emt 0:00:15]} 3. Nf3 {[%emt 0:00:07]} Nf6 {[%emt 0:00:14]} 4. Nc3 {[%emt 0:00:05]} dxc4 {[%emt 0:00:51]} 5. a4 {[%emt 0:00:07]} Bf5 {[%emt 0:01:05]} 6. e3 {[%emt 0:00:13]} e6 {[%emt 0:00:24]} 7. Bxc4 {[%emt 0:00:07]} Bb4 {[%emt 0:00:11]} 8. O-O {[%emt 0:00:19]} Nbd7 {[%emt 0:01:13]} 9. Qe2 {[%emt 0:00:08]} Bg6 {[%emt 0:00:45]} 10. e4 {[%emt 0:00:08]} O-O {[%emt 0:03:36]} 11. Bd3 {[%emt 0:00:09]} Bh5 {[%emt 0:12:14]} 12. e5 {[%emt 0:01:30]} Nd5 {[%emt 0:00:12]} 13. Nxd5 {[%emt 0:00:08]} cxd5 {[%emt 0:00:28]} 14. Qe3 {[%emt 0:02:57]} Be7 {[%emt 0:08:20]} 15. Bd2 {[%emt 0:06:14]} Bg6 {[%emt 0:04:57]} 16. Bxg6 {[%emt 0:12:02]} fxg6 {[%emt 0:17:22]} 17. Rfc1 {[%emt 0:20:30]} Nb8 {[%emt 0:09:57]} 18. b4 {[%emt 0:09:32]} Nc6 {[%emt 0:00:54]} 19. b5 {[%emt 0:03:01]} Na5 {[%emt 0:05:34]} 20. Bxa5 {[%emt 0:00:46]} Qxa5 {[%emt 0:00:01]} 21. Qc3 {[%emt 0:00:32]} Qxc3 {[%emt 0:04:41]} 22. Rxc3 {[%emt 0:00:02]} Rfc8 {[%emt 0:00:13]} 23. Rac1 {[%emt 0:00:33]} Rxc3 {[%emt 0:00:04]} 24. Rxc3 {[%emt 0:00:05]} Bd8 {[%emt 0:00:07]} 25. Kf1 {[%emt 0:02:01]} Kf7 {[%emt 0:10:04]} 26. Ke2 {[%emt 0:05:22]} Ke7 {[%emt 0:03:30]} 27. Ne1 {[%emt 0:22:00]} a6 {[%emt 0:08:53]} 28. Nd3 {[%emt 0:01:36]} axb5 {[%emt 0:01:49]} 29. axb5 {[%emt 0:00:03]} Ra5 {[%emt 0:00:53]} 30. Rb3 {[%emt 0:01:02]} Bb6 {[%emt 0:01:03]} 31. Nc5 {[%emt 0:11:47]} Ra2+ {[%emt 0:00:01]} 32. Ke3 {[%emt 0:01:05]} Bxc5 33. dxc5 Ra4 {[%emt 0:00:07]} 34. Kd3 {[%emt 0:00:02]} Kd7 {[%emt 0:00:08]} 1/2-1/2

[Event "Velammal AICF Women GM 2024"]
[Site "Chennai"]
[Date "2024.03.22"]
[Round "7.1"]
[White "Sedina, Elena"]
[Black "Bommini Mounika Akshaya"]
[Result "1/2-1/2"]
[ECO "B22"]
[WhiteElo "2161"]
[BlackElo "2134"]
[Annotator "RC"]
[PlyCount "97"]
[EventDate "2024.03.18"]
[EventType "tourn"]
[EventCountry "IND"]
[SourceTitle "playchess.com"]
[Source "ChessBase"]
[SourceQuality "1"]
[TimeControl "5400+30"]

1. e4 {[%emt 0:01:02]} c5 {[%emt 0:00:39]} 2. Nf3 {[%emt 0:00:13]} e6 {[%emt 0:00:26]} 3. c3 {[%emt 0:00:45]} Nf6 {[%emt 0:00:22]} 4. e5 {[%emt 0:00:42]} Nd5 {[%emt 0:00:07]} 5. Bc4 {[%emt 0:03:09]} d6 {[%emt 0:00:29]} 6. d4 {[%emt 0:00:20]} cxd4 {[%emt 0:00:11]} 7. cxd4 {[%emt 0:00:17]} Be7 {[%emt 0:00:15]} 8. O-O {[%emt 0:00:32]} O-O {[%emt 0:00:06]} 9. Qe2 {[%emt 0:10:01]} dxe5 {[%emt 0:00:26]} 10. dxe5 {[%emt 0:00:20]} Bd7 {[%emt 0:00:09]} 11. Rd1 {[%emt 0:04:24]} Bc6 {[%emt 0:00:10]} 12. Nd4 {[%emt 0:10:10]} Bc5 {[%emt 0:00:25]} 13. Nc3 {[%emt 0:10:31]} Nxc3 {[%emt 0:11:49]} 14. bxc3 {[%emt 0:00:06]} Qc7 {[%emt 0:02:35]} 15. Bf4 {[%emt 0:10:09]} Ba4 {[%emt 0:08:31]} 16. Rd3 {[%emt 0:19:06]} Bxd4 {[%emt 0:18:31]} 17. Rxd4 {[%emt 0:00:07]} b5 {[%emt 0:01:30]} 18. Bb3 {[%emt 0:10:21]} Qxc3 {[%emt 0:04:39]} 19. Rad1 {[%emt 0:01:09]} Bxb3 {[%emt 0:03:37]} 20. axb3 {[%emt 0:00:17]} Nc6 {[%emt 0:03:20]} 21. R4d3 {[%emt 0:08:51]} Qb4 {[%emt 0:02:37]} 22. Bg5 {[%emt 0:00:07]} Qc5 {[%emt 0:08:48]} 23. Re1 {[%emt 0:01:06]} Ne7 {[%emt 0:10:41]} 24. Rc1 {[%emt 0:04:21]} Qa3 {[%emt 0:03:57]} 25. Rcd1 {[%emt 0:01:47]} Ng6 {[%emt 0:02:06]} 26. h4 {[%emt 0:00:43]} Qc5 {[%emt 0:02:30]} 27. Re1 {[%emt 0:01:40]} h6 {[%emt 0:03:38]} 28. h5 {[%emt 0:01:13]} hxg5 {[%emt 0:01:23]} 29. hxg6 {[%emt 0:00:28]} fxg6 {[%emt 0:00:07]} 30. Rd7 {[%emt 0:00:55]} Rf5 {[%emt 0:04:48]} 31. Qe3 {[%emt 0:00:06]} Qxe3 {[%emt 0:00:55]} 32. Rxe3 {[%emt 0:00:00]} a5 {[%emt 0:00:52]} 33. Rb7 {[%emt 0:01:15]} a4 {[%emt 0:05:41]} 34. Rxb5 {[%emt 0:00:03]} a3 {[%emt 0:00:03]} 35. Re1 {[%emt 0:00:04]} g4 {[%emt 0:00:45]} 36. Ra1 {[%emt 0:00:33]} g3 {[%emt 0:00:37]} 37. fxg3 {[%emt 0:00:12]} Kh7 {[%emt 0:00:36]} 38. g4 {[%emt 0:01:48]} Rf4 {[%emt 0:00:15]} 39. g5 {[%emt 0:00:21]} Rf5 {[%emt 0:00:29]} 40. b4 {[%emt 0:00:39]} Ra4 {[%emt 0:00:38]} 41. Ra5 {[%emt 0:00:13]} Rxb4 {[%emt 0:00:12]} 42. R1xa3 {[%emt 0:00:34]} Rb1+ {[%emt 0:00:49]} 43. Kh2 {[%emt 0:00:04]} Rxg5 {[%emt 0:00:18]} 44. Rh3+ {[%emt 0:00:19]} Kg8 {[%emt 0:00:35]} 45. Ra8+ {[%emt 0:00:07]} Kf7 {[%emt 0:00:05]} 46. Ra7+ {[%emt 0:00:19]} Kg8 {[%emt 0:00:47]} 47. Ra8+ {[%emt 0:00:10]} Kf7 {[%emt 0:00:04]} 48. Ra7+ {[%emt 0:00:32]} Kg8 {[%emt 0:00:07]} 49. Ra8+ {[%emt 0:00:18]} 1/2-1/2